[Event "NJSK 2026 Jeugd B"]
[Site "Helmond, Netherlands"]
[Date "2026.05.01"]
[Round "7.1"]
[White "Chua, Ethan"]
[Black "De Jong, Lode"]
[Result "1/2-1/2"]
[TimeControl "90min/40moves + 30min + 30sec/move"]
[WhiteTitle "-"]
[BlackTitle "-"]
[WhiteFideId "1089250"]
[BlackFideId "40101860"]
[WhiteElo "2168"]
[BlackElo "1902"]

1. c4 {[%clk 01:30:54]} {[%emt 00:00:06]} Nf6 {[%clk 01:30:44]} {[%emt
00:00:15]} 2. Nc3 {[%clk 01:31:20]} {[%emt 00:00:05]} e6 {[%clk 01:28:15]}
{[%emt 00:02:59]} 3. e4 {[%clk 01:30:22]} {[%emt 00:01:28]} d5 {[%clk
01:28:40]} {[%emt 00:00:05]} 4. cxd5 {[%clk 01:30:47]} {[%emt 00:00:05]} exd5
{[%clk 01:29:05]} {[%emt 00:00:05]} 5. e5 {[%clk 01:31:15]} {[%emt 00:00:02]}
d4 {[%clk 01:26:18]} {[%emt 00:03:17]} 6. exf6 {[%clk 01:31:21]} {[%emt
00:00:24]} dxc3 {[%clk 01:26:41]} {[%emt 00:00:07]} 7. Qe2+ {[%clk 01:31:34]}
{[%emt 00:00:17]} Be6 {[%clk 01:27:02]} {[%emt 00:00:08]} 8. dxc3 {[%clk
01:31:51]} {[%emt 00:00:14]} Qxf6 {[%clk 01:26:18]} {[%emt 00:01:14]} 9. Nf3
{[%clk 01:32:17]} {[%emt 00:00:03]} Nd7 {[%clk 01:19:36]} {[%emt 00:07:13]} 10.
Qb5 {[%clk 01:29:59]} {[%emt 00:02:47]} Bc5 {[%clk 01:12:32]} {[%emt 00:07:34]}
11. Qxb7 {[%clk 00:49:05]} {[%emt 00:41:25]} O-O {[%clk 01:11:13]} {[%emt
00:01:47]} 12. Be2 {[%clk 00:46:59]} {[%emt 00:02:37]} Rfe8 {[%clk 00:54:25]}
{[%emt 00:17:19]} 13. O-O {[%clk 00:46:05]} {[%emt 00:01:19]} Rab8 {[%clk
00:50:07]} {[%emt 00:04:53]} 14. Qxc7 {[%clk 00:43:56]} {[%emt 00:02:39]} Bg4
{[%clk 00:50:30]} {[%emt 00:00:06]} 15. Qg3 {[%clk 00:38:48]} {[%emt 00:05:40]}
1/2-1/2

[Event "NJSK 2026 Jeugd B"]
[Site "Helmond, Netherlands"]
[Date "2026.05.01"]
[Round "7.2"]
[White "Kurt, Sascha"]
[Black "Aravindhan, Achyuth"]
[Result "1/2-1/2"]
[TimeControl "90min/40moves + 30min + 30sec/move"]
[WhiteTitle "-"]
[BlackTitle "-"]
[WhiteFideId "1082647"]
[BlackFideId "1084216"]
[WhiteElo "2280"]
[BlackElo "2277"]

1. e4 {[%emt 00:01:09]} c5 {[%clk 01:30:46]} {[%emt 00:00:01]} 2. Nf3 {[%clk
01:30:07]} {[%emt 00:00:27]} Nc6 {[%clk 01:31:10]} {[%emt 00:00:06]} 3. Bb5
{[%clk 01:30:17]} {[%emt 00:00:19]} g6 {[%clk 01:31:34]} {[%emt 00:00:07]} 4.
O-O {[%clk 01:30:42]} {[%emt 00:00:05]} Bg7 {[%clk 01:32:01]} {[%emt 00:00:03]}
5. c3 {[%clk 01:31:00]} {[%emt 00:00:12]} a6 {[%clk 01:31:00]} {[%emt
00:01:32]} 6. Bxc6 {[%clk 01:31:23]} {[%emt 00:00:07]} dxc6 {[%clk 01:31:26]}
{[%emt 00:00:03]} 7. h3 {[%clk 01:31:46]} {[%emt 00:00:07]} Nf6 {[%clk
01:31:30]} {[%emt 00:00:27]} 8. Qe2 {[%clk 01:31:50]} {[%emt 00:00:24]} O-O
{[%clk 01:28:35]} {[%emt 00:03:27]} 9. d4 {[%clk 01:31:42]} {[%emt 00:00:38]}
cxd4 {[%clk 01:21:31]} {[%emt 00:07:34]} 10. cxd4 {[%clk 01:31:57]} {[%emt
00:00:10]} Qc7 {[%clk 01:09:45]} {[%emt 00:12:21]} 11. Nc3 {[%clk 01:31:57]}
{[%emt 00:00:30]} Rd8 {[%clk 01:09:47]} {[%emt 00:00:28]} 12. a4 {[%clk
01:23:13]} {[%emt 00:09:14]} b6 {[%clk 00:44:02]} {[%emt 00:26:16]} 13. Be3
{[%clk 01:17:39]} {[%emt 00:06:03]} c5 {[%clk 00:42:35]} {[%emt 00:01:57]} 14.
Qc4 {[%clk 01:03:37]} {[%emt 00:14:32]} Bb7 {[%clk 00:28:58]} {[%emt 00:14:07]}
15. d5 {[%clk 00:41:50]} {[%emt 00:22:16]} Qd7 {[%clk 00:18:00]} {[%emt
00:11:28]} 16. Rad1 {[%clk 00:36:11]} {[%emt 00:06:11]} e6 {[%clk 00:17:41]}
{[%emt 00:00:50]} 17. d6 {[%clk 00:26:47]} {[%emt 00:09:54]} b5 {[%clk
00:17:25]} {[%emt 00:00:46]} 18. Qxc5 {[%clk 00:26:22]} {[%emt 00:00:55]} Nxe4
{[%clk 00:16:48]} {[%emt 00:01:07]} 19. Nxe4 {[%clk 00:26:11]} {[%emt
00:00:41]} Bxe4 {[%clk 00:17:11]} {[%emt 00:00:07]} 20. Ne5 {[%clk 00:20:16]}
{[%emt 00:06:25]} Qb7 {[%clk 00:17:08]} {[%emt 00:00:32]} 21. f3 {[%clk
00:20:39]} {[%emt 00:00:08]} Bd5 {[%clk 00:17:12]} {[%emt 00:00:25]} 22. Bd4
{[%clk 00:14:52]} {[%emt 00:06:18]} 1/2-1/2

[Event "NJSK 2026 Jeugd B"]
[Site "Helmond, Netherlands"]
[Date "2026.05.01"]
[Round "7.3"]
[White "Baarspul, Bram"]
[Black "Winter, Sven"]
[Result "1-0"]
[TimeControl "90min/40moves + 30min + 30sec/move"]
[WhiteTitle "-"]
[BlackTitle "-"]
[WhiteFideId "40106187"]
[BlackFideId "1092375"]
[WhiteElo "2177"]
[BlackElo "2013"]

1. e4 {[%clk 01:30:57]} {[%emt 00:00:02]} c6 {[%clk 01:30:52]} {[%emt
00:00:09]} 2. d4 {[%clk 01:31:24]} {[%emt 00:00:04]} d5 {[%clk 01:31:06]}
{[%emt 00:00:16]} 3. e5 {[%clk 01:31:46]} {[%emt 00:00:07]} c5 {[%clk
01:31:28]} {[%emt 00:00:08]} 4. Nf3 {[%clk 01:32:10]} {[%emt 00:00:06]} Nc6
{[%clk 01:31:48]} {[%emt 00:00:10]} 5. dxc5 {[%clk 01:32:35]} {[%emt 00:00:05]}
Bg4 {[%clk 01:32:11]} {[%emt 00:00:07]} 6. c3 {[%clk 01:31:28]} {[%emt
00:01:38]} e6 {[%clk 01:32:14]} {[%emt 00:00:27]} 7. Be3 {[%clk 01:30:43]}
{[%emt 00:01:15]} Bxf3 {[%clk 01:28:24]} {[%emt 00:04:20]} 8. Qxf3 {[%clk
01:30:47]} {[%emt 00:00:25]} Nxe5 {[%clk 01:28:18]} {[%emt 00:00:37]} 9. Bb5+
{[%clk 01:31:06]} {[%emt 00:00:10]} Nc6 {[%clk 01:28:40]} {[%emt 00:00:08]} 10.
Nd2 {[%clk 01:17:28]} {[%emt 00:14:08]} Be7 {[%clk 01:28:34]} {[%emt 00:00:35]}
11. Qg3 {[%clk 01:17:29]} {[%emt 00:00:29]} Bf6 {[%clk 01:28:09]} {[%emt
00:00:55]} 12. Nf3 {[%clk 01:11:38]} {[%emt 00:06:21]} Nge7 {[%clk 01:27:12]}
{[%emt 00:01:27]} 13. Ne5 {[%clk 01:05:26]} {[%emt 00:06:42]} O-O {[%clk
01:23:59]} {[%emt 00:03:42]} 14. Ng4 {[%clk 01:03:07]} {[%emt 00:02:50]} Nf5
{[%clk 01:23:38]} {[%emt 00:00:51]} 15. Nxf6+ {[%clk 00:57:16]} {[%emt
00:06:22]} Qxf6 {[%clk 01:23:14]} {[%emt 00:00:53]} 16. Qf3 {[%clk 00:56:05]}
{[%emt 00:01:40]} Ne5 {[%clk 01:22:08]} {[%emt 00:01:36]} 17. Qe2 {[%clk
00:55:57]} {[%emt 00:00:38]} a6 {[%clk 01:21:47]} {[%emt 00:00:52]} 18. Ba4
{[%clk 00:53:05]} {[%emt 00:03:22]} Nc4 {[%clk 01:20:38]} {[%emt 00:01:38]} 19.
Bc1 {[%clk 00:43:15]} {[%emt 00:10:20]} Rac8 {[%clk 01:19:29]} {[%emt
00:01:40]} 20. g4 {[%clk 00:40:46]} {[%emt 00:02:58]} Nh4 {[%clk 01:12:30]}
{[%emt 00:07:30]} 21. f4 {[%clk 00:40:32]} {[%emt 00:00:43]} Qe7 {[%clk
01:08:28]} {[%emt 00:04:32]} 22. b3 {[%clk 00:34:38]} {[%emt 00:06:25]} Na5
{[%clk 01:06:57]} {[%emt 00:02:01]} 23. Be3 {[%clk 00:33:57]} {[%emt 00:01:11]}
b5 {[%clk 01:01:23]} {[%emt 00:06:04]} 24. cxb6 {[%clk 00:32:47]} {[%emt
00:01:40]} Rxc3 {[%clk 01:01:38]} {[%emt 00:00:14]} 25. O-O {[%clk 00:32:16]}
{[%emt 00:01:02]} Rfc8 {[%clk 00:59:49]} {[%emt 00:02:19]} 26. Bd2 {[%clk
00:22:18]} {[%emt 00:10:29]} Qc5+ {[%clk 00:44:06]} {[%emt 00:16:12]} 27. Kh1
{[%clk 00:22:09]} {[%emt 00:00:40]} d4 {[%clk 00:43:27]} {[%emt 00:01:10]} 28.
Qe4 {[%clk 00:18:30]} {[%emt 00:04:10]} Rd3 {[%clk 00:26:39]} {[%emt 00:17:18]}
29. Rac1 {[%clk 00:15:01]} {[%emt 00:03:59]} Qf8 {[%clk 00:25:20]} {[%emt
00:01:48]} 30. Rxc8 {[%clk 00:12:21]} {[%emt 00:03:10]} Qxc8 {[%clk 00:25:37]}
{[%emt 00:00:13]} 31. Bxa5 {[%clk 00:12:11]} {[%emt 00:00:40]} Rf3 {[%clk
00:25:11]} {[%emt 00:00:57]} 32. Rxf3 {[%clk 00:11:28]} {[%emt 00:01:13]} f5
{[%clk 00:25:08]} {[%emt 00:00:33]} 33. Qc6 {[%clk 00:11:40]} {[%emt 00:00:18]}
1-0

[Event "NJSK 2026 Jeugd B"]
[Site "Helmond, Netherlands"]
[Date "2026.05.01"]
[Round "7.4"]
[White "Teianu, Maxim"]
[Black "Zecha, Oscar"]
[Result "0-1"]
[TimeControl "90min/40moves + 30min + 30sec/move"]
[WhiteTitle "-"]
[BlackTitle "-"]
[WhiteFideId "40101967"]
[BlackFideId "1073826"]
[WhiteElo "2024"]
[BlackElo "2120"]

1. d4 {[%clk 01:30:58]} {[%emt 00:00:01]} Nf6 {[%clk 01:30:57]} {[%emt
00:00:03]} 2. c4 {[%clk 01:31:22]} {[%emt 00:00:05]} e6 {[%clk 01:31:25]}
{[%emt 00:00:02]} 3. Nf3 {[%clk 01:31:48]} {[%emt 00:00:05]} d5 {[%clk
01:31:52]} {[%emt 00:00:03]} 4. Nc3 {[%clk 01:32:14]} {[%emt 00:00:03]} Bb4
{[%clk 01:32:19]} {[%emt 00:00:04]} 5. cxd5 {[%clk 01:32:29]} {[%emt 00:00:14]}
exd5 {[%clk 01:32:44]} {[%emt 00:00:03]} 6. Bg5 {[%clk 01:32:39]} {[%emt
00:00:20]} h6 {[%clk 01:33:09]} {[%emt 00:00:05]} 7. Bh4 {[%clk 01:33:06]}
{[%emt 00:00:03]} g5 {[%clk 01:33:35]} {[%emt 00:00:04]} 8. Bg3 {[%clk
01:33:20]} {[%emt 00:00:16]} Ne4 {[%clk 01:34:00]} {[%emt 00:00:06]} 9. Nd2
{[%clk 01:26:41]} {[%emt 00:07:09]} Nxg3 {[%clk 01:34:00]} {[%emt 00:00:31]} 10.
hxg3 {[%clk 01:27:06]} {[%emt 00:00:04]} c6 {[%clk 01:34:22]} {[%emt 00:00:08]}
11. Qc2 {[%clk 01:25:52]} {[%emt 00:01:43]} Be6 {[%clk 01:33:40]} {[%emt
00:01:14]} 12. a3 {[%clk 01:24:21]} {[%emt 00:02:00]} Be7 {[%clk 01:32:23]}
{[%emt 00:01:47]} 13. O-O-O {[%clk 01:17:02]} {[%emt 00:07:49]} Nd7 {[%clk
01:31:33]} {[%emt 00:01:20]} 14. e4 {[%clk 01:13:45]} {[%emt 00:03:46]} Qb6
{[%clk 01:27:24]} {[%emt 00:04:39]} 15. exd5 {[%clk 00:54:22]} {[%emt
00:19:54]} cxd5 {[%clk 01:27:24]} {[%emt 00:00:30]} 16. Nb5 {[%clk 00:51:58]}
{[%emt 00:02:54]} Kd8 {[%clk 01:15:16]} {[%emt 00:12:38]} 17. f4 {[%clk
00:41:19]} {[%emt 00:11:09]} Rc8 {[%clk 01:10:15]} {[%emt 00:05:32]} 18. Nc3
{[%clk 00:41:44]} {[%emt 00:00:04]} Nf6 {[%clk 00:58:56]} {[%emt 00:11:49]} 19.
Be2 {[%clk 00:31:09]} {[%emt 00:11:03]} Ng4 {[%clk 00:50:09]} {[%emt 00:09:19]}
20. Bxg4 {[%clk 00:31:17]} {[%emt 00:00:22]} Bxg4 {[%clk 00:50:36]} {[%emt
00:00:02]} 21. Nf3 {[%clk 00:31:40]} {[%emt 00:00:08]} gxf4 {[%clk 00:37:44]}
{[%emt 00:13:22]} 22. gxf4 {[%clk 00:31:34]} {[%emt 00:00:36]} Qf6 {[%clk
00:35:10]} {[%emt 00:03:04]} 23. Qb3 {[%clk 00:29:26]} {[%emt 00:02:38]} Kc7
{[%clk 00:29:49]} {[%emt 00:05:54]} 24. Kb1 {[%clk 00:29:34]} {[%emt 00:00:22]}
Kb8 {[%clk 00:29:37]} {[%emt 00:00:41]} 25. Rde1 {[%clk 00:25:03]} {[%emt
00:05:00]} Rhg8 {[%clk 00:21:48]} {[%emt 00:08:21]} 26. Nxd5 {[%clk 00:19:08]}
{[%emt 00:06:24]} Qg6+ {[%clk 00:20:20]} {[%emt 00:01:58]} 27. Ka1 {[%clk
00:19:26]} {[%emt 00:00:13]} Bd6 {[%clk 00:18:17]} {[%emt 00:02:32]} 28. Ne7
{[%clk 00:19:27]} {[%emt 00:00:29]} Bxe7 {[%clk 00:17:21]} {[%emt 00:01:26]} 29.
Rxe7 {[%clk 00:19:12]} {[%emt 00:00:45]} Qb6 {[%clk 00:13:45]} {[%emt
00:04:07]} 30. Qxb6 {[%clk 00:18:02]} {[%emt 00:01:39]} axb6 {[%clk 00:14:14]}
{[%emt 00:00:01]} 31. Re2 {[%clk 00:09:46]} {[%emt 00:08:45]} Rc4 {[%clk
00:12:24]} {[%emt 00:02:21]} 32. d5 {[%clk 00:09:49]} {[%emt 00:00:27]} Rxf4
{[%clk 00:11:44]} {[%emt 00:01:10]} 33. Rxh6 {[%clk 00:10:12]} {[%emt
00:00:06]} Rd8 {[%clk 00:07:21]} {[%emt 00:04:54]} 34. Rxb6 {[%clk 00:06:39]}
{[%emt 00:04:04]} Rxd5 {[%clk 00:07:28]} {[%emt 00:00:23]} 35. Kb1 {[%clk
00:04:24]} {[%emt 00:02:45]} Bf5+ {[%clk 00:06:05]} {[%emt 00:01:53]} 36. Ka2
{[%clk 00:04:47]} {[%emt 00:00:06]} Be6 {[%clk 00:03:13]} {[%emt 00:03:22]} 37.
b3 {[%clk 00:04:13]} {[%emt 00:01:04]} Kc7 {[%clk 00:02:15]} {[%emt 00:01:28]}
38. Rb4 {[%clk 00:04:39]} {[%emt 00:00:05]} Rxb4 {[%clk 00:02:21]} 39. axb4
{[%clk 00:05:05]} {[%emt 00:00:27]} Rd3 {[%clk 00:02:34]} {[%emt 00:00:17]} 40.
Nd2 {[%clk 00:05:10]} {[%emt 00:00:25]} Bd5 {[%clk 00:00:37]} {[%emt 00:02:28]}
41. Ne4 {[%clk 00:00:33]} {[%emt 00:05:07]} Rxb3 {[%clk 00:26:07]} {[%emt
00:04:59]} 42. Nf6 {[%clk 00:28:39]} {[%emt 00:02:24]} Bc4 {[%clk 00:25:43]}
{[%emt 00:00:54]} 43. Rc2 {[%clk 00:22:30]} {[%emt 00:06:38]} Rxb4+ {[%clk
00:25:11]} {[%emt 00:01:04]} 44. Ka1 {[%clk 00:22:56]} {[%emt 00:00:04]} Kd6
{[%clk 00:24:20]} {[%emt 00:01:21]} 45. Ne4+ {[%clk 00:23:22]} {[%emt
00:00:04]} Ke5 {[%clk 00:23:44]} {[%emt 00:01:06]} 46. Ng5 {[%clk 00:23:18]}
{[%emt 00:00:32]} Ra4+ {[%clk 00:17:50]} {[%emt 00:06:25]} 47. Kb2 {[%clk
00:23:37]} {[%emt 00:00:12]} Ra2+ {[%clk 00:18:13]} {[%emt 00:00:07]} 48. Kc3
{[%clk 00:24:04]} {[%emt 00:00:03]} Rxc2+ {[%clk 00:18:37]} {[%emt 00:00:06]}
49. Kxc2 {[%clk 00:24:31]} {[%emt 00:00:02]} Bd5 {[%clk 00:13:37]} {[%emt
00:05:31]} 50. g3 {[%clk 00:24:26]} {[%emt 00:00:35]} Kf5 {[%emt 00:00:38]} 51.
Nh3 {[%clk 00:24:32]} Kg4 {[%clk 00:13:56]} {[%emt 00:00:26]} 52. Nf4 {[%clk
00:24:58]} {[%emt 00:00:05]} Be4+ {[%clk 00:13:30]} {[%emt 00:00:56]} 53. Kc3
{[%clk 00:25:19]} {[%emt 00:00:09]} Kxg3 {[%clk 00:13:48]} {[%emt 00:00:10]} 54.
Nh5 {[%clk 00:25:47]} {[%emt 00:00:04]} Kg4 {[%clk 00:12:37]} {[%emt 00:01:41]}
55. Nf6+ {[%clk 00:26:13]} {[%emt 00:00:03]} Kf5 {[%clk 00:12:58]} {[%emt
00:00:09]} 56. Nd7 {[%clk 00:26:40]} {[%emt 00:00:04]} Bc6 {[%clk 00:12:33]}
{[%emt 00:00:54]} 57. Nc5 {[%clk 00:27:00]} {[%emt 00:00:11]} Ke5 {[%clk
00:12:44]} {[%emt 00:00:20]} 58. Kd3 {[%clk 00:27:26]} {[%emt 00:00:04]} f5
{[%clk 00:12:01]} {[%emt 00:01:12]} 59. Nb3 {[%clk 00:27:50]} {[%emt 00:00:06]}
f4 {[%clk 00:11:48]} {[%emt 00:00:44]} 60. Nd4 {[%clk 00:28:16]} {[%emt
00:00:03]} Be4+ {[%clk 00:11:23]} {[%emt 00:00:56]} 61. Kc3 {[%clk 00:28:37]}
{[%emt 00:00:09]} f3 {[%clk 00:10:51]} {[%emt 00:01:02]} 62. Nb3 {[%clk
00:29:00]} {[%emt 00:00:07]} f2 {[%clk 00:10:47]} {[%emt 00:00:33]} 63. Nd2
{[%clk 00:29:28]} {[%emt 00:00:03]} Bg2 {[%clk 00:10:49]} {[%emt 00:00:28]} 64.
Kb4 {[%clk 00:29:35]} {[%emt 00:00:23]} f1=Q {[%clk 00:11:08]} {[%emt
00:00:11]} 65. Nxf1 {[%clk 00:30:01]} {[%emt 00:00:04]} Bxf1 {[%clk 00:11:32]}
{[%emt 00:00:06]} 66. Kc5 {[%clk 00:30:28]} {[%emt 00:00:02]} b5 {[%clk
00:11:03]} {[%emt 00:00:59]} 67. Kb4 {[%clk 00:30:54]} {[%emt 00:00:05]} Kd4
{[%clk 00:11:25]} {[%emt 00:00:08]} 68. Kb3 {[%clk 00:31:21]} {[%emt 00:00:03]}
Ke5 {[%emt 00:00:51]} 0-1

[Event "NJSK 2026 Jeugd B"]
[Site "Helmond, Netherlands"]
[Date "2026.05.01"]
[Round "7.5"]
[White "Frederiks, Jesse"]
[Black "Groenewoud, Joel"]
[Result "0-1"]
[TimeControl "90min/40moves + 30min + 30sec/move"]
[WhiteTitle "-"]
[BlackTitle "-"]
[WhiteFideId "1095790"]
[BlackFideId "1087746"]
[WhiteElo "2018"]
[BlackElo "2114"]

1. e4 {[%clk 01:30:54]} {[%emt 00:00:06]} c6 {[%clk 01:30:56]} {[%emt
00:00:05]} 2. d4 {[%clk 01:31:20]} {[%emt 00:00:05]} d5 {[%clk 01:31:22]}
{[%emt 00:00:03]} 3. f3 {[%clk 01:31:23]} {[%emt 00:00:26]} e6 {[%clk
01:31:18]} {[%emt 00:00:35]} 4. Bd3 {[%clk 01:31:46]} {[%emt 00:00:07]} c5
{[%clk 01:26:47]} {[%emt 00:05:01]} 5. c3 {[%clk 01:31:05]} {[%emt 00:01:10]}
Nc6 {[%clk 01:27:00]} {[%emt 00:00:18]} 6. Ne2 {[%clk 01:30:41]} {[%emt
00:00:53]} cxd4 {[%clk 01:23:43]} {[%emt 00:03:48]} 7. cxd4 {[%clk 01:29:34]}
{[%emt 00:01:37]} dxe4 {[%clk 01:22:57]} {[%emt 00:01:15]} 8. fxe4 {[%clk
01:29:16]} {[%emt 00:00:47]} Nf6 {[%clk 01:22:55]} {[%emt 00:00:33]} 9. Nbc3
{[%clk 01:20:03]} {[%emt 00:09:43]} Be7 {[%clk 01:19:18]} {[%emt 00:04:08]} 10.
O-O {[%clk 01:06:51]} {[%emt 00:13:41]} O-O {[%clk 01:08:10]} {[%emt 00:11:38]}
11. e5 {[%clk 01:03:45]} {[%emt 00:03:36]} Nd5 {[%clk 01:07:34]} {[%emt
00:01:06]} 12. Bb1 {[%clk 00:58:04]} {[%emt 00:06:10]} f5 {[%clk 00:52:59]}
{[%emt 00:15:06]} 13. exf6 {[%clk 00:54:46]} {[%emt 00:03:48]} Rxf6 {[%clk
00:51:20]} {[%emt 00:02:08]} 14. Rxf6 {[%clk 00:54:15]} {[%emt 00:01:01]} Bxf6
{[%clk 00:51:37]} {[%emt 00:00:14]} 15. Qd3 {[%clk 00:47:49]} {[%emt 00:06:56]}
g6 {[%clk 00:51:38]} {[%emt 00:00:28]} 16. a3 {[%clk 00:37:22]} {[%emt
00:10:58]} Qb6 {[%clk 00:49:02]} {[%emt 00:03:06]} 17. Kh1 {[%clk 00:33:24]}
{[%emt 00:04:27]} Bxd4 {[%clk 00:43:08]} {[%emt 00:06:24]} 18. Nxd5 {[%clk
00:30:00]} {[%emt 00:03:55]} exd5 {[%clk 00:43:11]} {[%emt 00:00:27]} 19. Ba2
{[%clk 00:30:04]} {[%emt 00:00:26]} Bf5 {[%clk 00:39:25]} {[%emt 00:04:17]} 20.
Bxd5+ {[%clk 00:29:03]} {[%emt 00:01:31]} Kg7 {[%clk 00:35:40]} {[%emt
00:04:14]} 21. Qd2 {[%clk 00:25:38]} {[%emt 00:03:56]} Be5 {[%clk 00:32:08]}
{[%emt 00:04:03]} 22. Ng3 {[%clk 00:22:35]} {[%emt 00:03:33]} Nd4 {[%clk
00:25:26]} {[%emt 00:07:10]} 23. Qh6+ {[%clk 00:06:05]} {[%emt 00:17:01]} Kh8
{[%clk 00:25:43]} {[%emt 00:00:13]} 24. Be3 {[%clk 00:02:45]} {[%emt 00:03:50]}
Qxb2 {[%clk 00:24:19]} {[%emt 00:01:53]} 25. Rf1 {[%clk 00:01:54]} {[%emt
00:01:22]} Bg7 {[%clk 00:21:03]} {[%emt 00:03:46]} 26. Qh4 {[%clk 00:01:40]}
{[%emt 00:00:44]} Bd3 {[%clk 00:13:47]} {[%emt 00:07:46]} 27. Bxd4 {[%clk
00:01:32]} {[%emt 00:00:38]} Bxd4 {[%clk 00:13:00]} {[%emt 00:01:17]} 28. Rd1
{[%clk 00:02:01]} {[%emt 00:00:02]} Bf6 {[%clk 00:12:38]} {[%emt 00:00:51]} 29.
Qf4 {[%clk 00:01:37]} {[%emt 00:00:54]} Ba6 {[%clk 00:10:11]} {[%emt 00:02:57]}
30. Ne4 {[%clk 00:01:26]} {[%emt 00:00:41]} Be5 {[%clk 00:09:21]} {[%emt
00:01:20]} 31. Qg5 {[%clk 00:01:00]} {[%emt 00:00:57]} Re8 {[%clk 00:06:42]}
{[%emt 00:03:08]} 32. Bf7 {[%clk 00:00:50]} {[%emt 00:00:40]} Rf8 {[%clk
00:03:43]} {[%emt 00:03:29]} 33. Qe7 {[%clk 00:01:11]} {[%emt 00:00:09]} Bg7
{[%clk 00:03:50]} {[%emt 00:00:22]} 34. Ng5 {[%clk 00:01:10]} {[%emt 00:00:31]}
Qf6 {[%clk 00:03:05]} {[%emt 00:01:16]} 35. Qc5 {[%clk 00:01:38]} {[%emt
00:00:02]} h6 {[%clk 00:02:45]} {[%emt 00:00:50]} 36. Ne6 {[%clk 00:01:13]}
{[%emt 00:00:55]} Rxf7 {[%clk 00:02:38]} {[%emt 00:00:36]} 37. Qc8+ {[%clk
00:01:18]} {[%emt 00:00:26]} Kh7 {[%clk 00:02:45]} {[%emt 00:00:22]} 38. h3
{[%clk 00:01:19]} {[%emt 00:00:30]} Bb5 {[%clk 00:01:44]} {[%emt 00:01:31]} 39.
Rg1 {[%clk 00:00:31]} {[%emt 00:01:18]} Bd7 {[%clk 00:01:52]} {[%emt 00:00:22]}
40. Nf8+ {[%clk 00:00:35]} {[%emt 00:00:26]} Bxf8 {[%clk 00:02:08]} {[%emt
00:00:14]} 41. Qxb7 {[%clk 00:00:54]} {[%emt 00:00:11]} Bd6 {[%clk 00:01:39]}
{[%emt 00:00:58]} 42. Qxa7 {[%clk 00:00:49]} {[%emt 00:00:36]} Qf4 {[%clk
00:01:44]} {[%emt 00:00:24]} 43. g3 {[%clk 00:01:15]} {[%emt 00:00:05]} Bc6+
{[%clk 00:01:56]} {[%emt 00:00:18]} 44. Kh2 {[%clk 00:01:36]} {[%emt 00:00:09]}
Qd2+ {[%clk 00:02:11]} {[%emt 00:00:15]} 45. Rg2 {[%clk 00:01:55]} {[%emt
00:00:11]} Qxg2# {[%clk 00:02:35]} {[%emt 00:00:06]} 0-1